fUST/lending_fUST_20260117
["ID","MTS","AMOUNT","RATE_DAILY","PERIOD"]
[402262362,1768630248416,-500.0,0.00019178,3]
[402262363,1768630248427,-500.0,0.00019178,3]
[402262364,1768630248437,-500.0,0.00019178,3]
[402262365,1768630248447,-500.0,0.00019178,3]
[402262366,1768630248456,-500.0,0.00019178,3]
[402262367,1768630248466,-508.08,0.00019178,3]
[402262368,1768630248475,-500.0,0.00019178,3]
[402262369,1768630248485,-500.0,0.00019178,3]
[402262370,1768630248495,-317.61791412,0.00019178,3]
[402262371,1768630248504,-500.0,0.00019178,3]
[402262372,1768630248513,-500.0,0.00019178,3]
[402262373,1768630248523,-500.0,0.00019178,3]
[402262374,1768630248532,-521.83,0.00019178,3]
[402262375,1768630248542,-1770.56,0.00019178,3]
[402262376,1768630248551,-500.0,0.00019178,3]
[402262377,1768630248561,-502.35,0.00019178,3]
[402262378,1768630248571,-500.0,0.00019178,3]
[402262379,1768630248580,-500.0,0.00019178,3]
[402262380,1768630248590,-562.22,0.00019178,3]
[402262381,1768630248599,-500.0,0.00019178,3]
[402262382,1768630248608,-344.59212106,0.00019178,3]
[402262383,1768630248638,-155.40787894,0.00019178,3]
[402262384,1768630248647,-500.0,0.00019178,3]
[402262385,1768630248656,-640.96,0.00019178,3]
[402262386,1768630248666,-500.0,0.00019178,3]
[402262387,1768630248675,-485.15830276,0.00019178,3]
[402262388,1768630248687,-14.84169724,0.00019178,3]
[402262389,1768630248696,-973.29,0.00019178,3]
[402262390,1768630248706,-271.17423575,0.00019178,3]
[402262391,1768630360481,500.0,0.000154,120]
[402262392,1768630400777,1573.2129,0.000154,120]
[402262438,1768631432250,-963.72371194,0.00015094,2]
[402262445,1768631432307,-1652.00046719,0.00015094,2]
[402262536,1768631438427,-5000.0,0.00014943,2]
[402262538,1768631438438,-88.52379001,0.00015094,2]
[402262544,1768631438483,-174.4083504,0.00015094,2]
[402262546,1768631438493,-511.81573857,0.00015094,2]
[402262548,1768631438505,-125.18426143,0.00015094,2]
[402262550,1768631438515,-5000.0,0.00015246,2]
[402262552,1768631438524,-206.64782377,0.000154,2]
[402262555,1768631438534,-890.2089568,0.00016266,2]
[402262556,1768631438544,-1160.884933,0.00017201,2]
[402262559,1768631438554,-182.63886864,0.00017323,2]
[402262560,1768631438564,-2138.33066815,0.000176,2]
[402262563,1768631438574,-3000.0,0.00017808,7]
[402262564,1768631438583,-250.0,0.00017808,4]
[402262565,1768631438593,-254.49,0.00017808,4]
[402262566,1768631438602,-27092.69656344,0.00017808,2]
[402262567,1768631438612,-2169.9977417,0.00017946,2]
[402262569,1768631438622,-417.51252377,0.00017999,2]
[402262571,1768631438632,-375.65840036,0.00017999,2]
[402262573,1768631438642,-500.0,0.00017999,2]
[402262575,1768631438651,-394.78057397,0.00017999,2]
[402262577,1768631438661,-181.65393726,0.00017999,2]
[402262579,1768631438671,-500.0,0.00017999,2]
[402262581,1768631438680,-500.0,0.00017999,2]
[402262583,1768631438690,-300.0,0.00017999,2]
[402262585,1768631438701,-152129.62492152,0.00018,2]
[402262587,1768631438710,-300.0,0.00018082,4]
[402262589,1768631438720,-388.4847563,0.00018178,2]
[402262591,1768631438729,-184.9029444,0.00018311,2]
[402262593,1768631438738,-184.9029444,0.00018311,2]
[402262594,1768631438748,-184.9029444,0.00018311,2]
[402262595,1768631438757,-184.9029444,0.00018311,2]
[402262597,1768631438767,-2150.738,0.00018389,2]
[402262599,1768631438778,-1041.66666667,0.00018417,2]
[402262600,1768631438794,-184.9029444,0.00018478,2]
[402262601,1768631438810,-194.2841096,0.00018478,2]
[402262602,1768631438819,-194.2841096,0.00018493,2]
[402262603,1768631438829,-194.2841096,0.00018493,2]
[402262604,1768631438839,-194.2841096,0.00018493,2]
[402262605,1768631438849,-194.2841096,0.00018493,2]
[402262606,1768631438860,-194.2841096,0.00018493,2]
[402262607,1768631438877,-194.2841096,0.00018493,2]
[402262608,1768631438888,-194.2841096,0.00018493,2]
[402262609,1768631438899,-194.2841096,0.00018493,2]
[402262610,1768631438911,-194.2841096,0.00018493,2]
[402262611,1768631438922,-194.2841096,0.000185,2]
[402262612,1768631438934,-5006.74955881,0.0001874,2]
[402262613,1768631438944,-194.2841096,0.000188,2]
[402262614,1768631438958,-194.2841096,0.000188,2]
[402262615,1768631438968,-151.0,0.00018875,2]
[402262616,1768631438977,-445.202766,0.00018875,2]
[402262617,1768631438986,-171.51,0.00018876,2]
[402262618,1768631438996,-356376.71241575,0.00018886,2]
[402262619,1768631439008,-756.08965238,0.00018886,2]
[402262646,1768631440644,-54719.98703012,0.00018886,2]
[402262900,1768631443555,-1254.61789968,0.00014943,2]
[402262901,1768631443565,-5676.91163017,0.00018886,2]
[402262903,1768631446650,-1419.41946898,0.00018886,2]
[402262904,1768631446673,-1928.52631954,0.00018886,2]
[402262905,1768631446693,-950.13,0.00018886,2]
[402262924,1768632632421,-1200.0,0.00011883,2]
[402262925,1768632632431,-5000.0,0.00011884,2]
[402262927,1768632632441,-587.0,0.00011884,2]
[402262928,1768632632450,-339.15927994,0.00012004,2]
[402262929,1768632632481,-3803.1415143,0.00012004,2]
[402262953,1768632638546,-1072.42239394,0.00011884,2]
[402262955,1768632638562,-3927.57760606,0.00011884,2]
[402262957,1768632638571,-857.69920576,0.00012004,2]
[402262959,1768632638581,-300.0,0.00012064,2]
[402262962,1768632638591,-300.0,0.00012064,2]
[402262963,1768632638600,-162.14031585,0.00012065,2]
[402262966,1768632638610,-5000.0,0.00012125,2]
[402262967,1768632638620,-191.3255727,0.00014065,2]
[402262969,1768632638629,-220.51082955,0.00016065,2]
[402262972,1768632638639,-184.9581126,0.00016986,2]
[402262973,1768632638648,-184.9581126,0.00016986,2]
[402262975,1768632638658,-194.3299959,0.00016986,2]
[402262977,1768632638667,-184.9581126,0.00016986,2]
[402262979,1768632638677,-184.9581126,0.00016986,2]
[402262981,1768632638686,-194.3299959,0.00016986,2]
[402262983,1768632638699,-151.0,0.00017405,2]
[402262985,1768632638708,-1878.75881868,0.000177,2]
[402262987,1768632638718,-225.622,0.00017799,2]
[402262989,1768632638728,-151.0,0.000178,2]
[402262991,1768632638739,-151.0,0.000178,2]
[402262993,1768632638749,-151.0,0.000178,2]
[402262995,1768632638759,-3000.0,0.00017808,7]
[402262997,1768632638770,-194.3299959,0.00017808,2]
[402262999,1768632638779,-194.3299959,0.00017808,2]
[402263001,1768632638788,-194.3299959,0.00017808,2]
[402263003,1768632638797,-194.3299959,0.00017808,2]
[402263005,1768632638806,-184.9581126,0.00017808,2]
[402263007,1768632638816,-184.9581126,0.00017808,2]
[402263009,1768632638825,-194.3299959,0.00017808,2]
[402263011,1768632638835,-194.3299959,0.00017808,2]
[402263013,1768632638844,-194.3299959,0.00017808,2]
[402263015,1768632638854,-194.3299959,0.00017808,2]
[402263017,1768632638863,-194.3299959,0.00017808,2]
[402263019,1768632638873,-369.3645432,0.00017808,2]
[402263021,1768632638883,-193.6500111,0.00017808,2]
[402263023,1768632638893,-1041.66666667,0.00017821,2]
[402263025,1768632638902,-1000.0,0.0001784,2]
[402263027,1768632638912,-184.9581126,0.00017878,2]
[402263029,1768632638922,-571.2762689,0.00017878,2]
[402263031,1768632638932,-194.3299959,0.00017878,2]
[402263033,1768632638941,-500.0,0.00017899,2]
[402263035,1768632638951,-500.0,0.00017945,2]
[402263037,1768632638961,-500.0,0.00017999,2]
[402263038,1768632638970,-500.0,0.00017999,2]
[402263040,1768632638980,-500.0,0.00017999,2]
[402263042,1768632638990,-500.0,0.00017999,2]
[402263044,1768632638999,-500.0,0.00017999,2]
[402263046,1768632639010,-500.0,0.00017999,2]
[402263048,1768632639019,-500.0,0.00017999,2]
[402263049,1768632639029,-500.0,0.00017999,2]
[402263050,1768632639038,-249.6960864,0.00018065,2]
[402263051,1768632639048,-388.5682192,0.00018078,2]
[402263052,1768632639059,-151.0,0.00018084,2]
[402263053,1768632639069,-1000.0,0.000181,2]
[402263054,1768632639078,-609.9739064,0.00018178,2]
[402263055,1768632639088,-369.8058888,0.00018178,2]
[402263056,1768632639098,-1204.6818702,0.00018178,2]
[402263057,1768632639107,-1110.0,0.00018392,2]
[402263058,1768632639117,-151.0,0.00018392,2]
[402263059,1768632639127,-2150.738,0.00018392,2]
[402263060,1768632639136,-168.3888056,0.00018392,2]
[402263061,1768632639146,-445.202766,0.00018392,2]
[402263062,1768632639155,-153.0,0.00018438,2]
[402263063,1768632639165,-200.0,0.0001859,2]
[402263064,1768632639175,-3418.4745779,0.00018591,2]
[402263065,1768632639184,-2553.5093059,0.00018591,2]
[402263066,1768632639194,-47247.66486746,0.00018591,2]
[402263067,1768632639214,-8637.44470604,0.00018591,2]
[402263068,1768632639224,-480.45,0.00018616,3]
[402263069,1768632639234,-262.96088025,0.00018625,2]
[402263070,1768632639243,-292.25876664,0.00018625,2]
[402263071,1768632639253,-237.68947624,0.00018626,2]
[402263072,1768632639263,-639890.03854668,0.00018626,2]
[402263073,1768632639275,-31285.0,0.00018666,2]
[402263074,1768632639288,-16422.0,0.00018666,2]
[402263075,1768632639297,-500.0,0.00018726,7]
[402263076,1768632639307,-500.0,0.00018726,7]
[402263077,1768632639316,-500.0,0.00018726,7]
[402263078,1768632639326,-500.0,0.00018726,7]
[402263079,1768632639335,-500.0,0.00018726,7]
[402263080,1768632639346,-500.0,0.00018726,7]
[402263081,1768632639356,-500.0,0.00018726,7]
[402263082,1768632639366,-500.0,0.00018726,7]
[402263083,1768632639375,-500.0,0.00018726,7]
[402263084,1768632639385,-500.0,0.00018726,7]
[402263085,1768632639395,-500.0,0.00018726,7]
[402263086,1768632639404,-500.0,0.00018726,7]
[402263087,1768632639414,-500.0,0.00018726,7]
[402263088,1768632639424,-500.0,0.00018726,7]
[402263089,1768632639434,-500.0,0.00018726,7]
[402263090,1768632639444,-500.0,0.00018726,7]
[402263091,1768632639454,-500.0,0.00018726,7]
[402263092,1768632639465,-500.0,0.00018726,7]
[402263093,1768632639474,-500.0,0.00018726,7]
[402263094,1768632639484,-500.0,0.00018726,7]
[402263095,1768632639494,-500.0,0.00018726,7]
[402263096,1768632639503,-500.0,0.00018726,7]
[402263097,1768632639513,-500.0,0.00018726,7]
[402263098,1768632639523,-500.0,0.00018726,7]
[402263099,1768632639532,-500.0,0.00018726,7]
[402263100,1768632639542,-500.0,0.00018726,7]
[402263101,1768632639552,-500.0,0.00018726,7]
[402263102,1768632639563,-500.0,0.00018726,7]
[402263103,1768632639572,-500.0,0.00018726,7]
[402263104,1768632639581,-500.0,0.00018726,7]
[402263105,1768632639591,-500.0,0.00018726,7]
[402263106,1768632639600,-500.0,0.00018726,7]
[402263107,1768632639609,-500.0,0.00018726,7]
[402263108,1768632639618,-500.0,0.00018726,7]
[402263109,1768632639629,-500.0,0.00018726,7]
[402263110,1768632639638,-500.0,0.00018726,7]
[402263111,1768632639647,-500.0,0.00018726,7]
[402263112,1768632639657,-500.0,0.00018726,7]
[402263113,1768632639667,-500.0,0.00018726,7]
[402263114,1768632639676,-500.0,0.00018726,7]
[402263115,1768632639685,-500.0,0.00018726,7]
[402263116,1768632639698,-500.0,0.00018726,7]
[402263117,1768632639708,-500.0,0.00018726,7]
[402263118,1768632639717,-500.0,0.00018726,7]
[402263119,1768632639727,-500.0,0.00018726,7]
[402263120,1768632639736,-500.0,0.00018726,7]
[402263121,1768632639745,-500.0,0.00018726,7]
[402263122,1768632639755,-500.0,0.00018726,7]
[402263123,1768632639764,-500.0,0.00018726,7]
[402263124,1768632639773,-500.0,0.00018726,7]
[402263125,1768632639782,-500.0,0.00018726,7]
[402263126,1768632639791,-500.0,0.00018726,7]
[402263127,1768632639800,-500.0,0.00018726,7]
[402263128,1768632639810,-500.0,0.00018726,7]
[402263129,1768632639819,-500.0,0.00018726,7]
[402263130,1768632639829,-500.0,0.00018726,7]
[402263131,1768632639838,-500.0,0.00018726,7]
[402263132,1768632639848,-500.0,0.00018726,7]
[402263133,1768632639859,-500.0,0.00018726,7]
[402263134,1768632639869,-500.0,0.00018726,7]
[402263135,1768632639879,-500.0,0.00018726,7]
[402263136,1768632639889,-500.0,0.00018726,7]
[402263137,1768632639899,-500.0,0.00018726,7]
[402263138,1768632639909,-500.0,0.00018726,7]
[402263139,1768632639918,-500.0,0.00018726,7]
[402263140,1768632639928,-500.0,0.00018726,7]
[402263141,1768632639938,-500.0,0.00018726,7]
[402263142,1768632639947,-500.0,0.00018726,7]
[402263143,1768632639957,-500.0,0.00018726,7]
[402263144,1768632639966,-500.0,0.00018726,7]
[402263145,1768632639976,-500.0,0.00018726,7]
[402263146,1768632639986,-500.0,0.00018726,7]
[402263147,1768632639997,-500.0,0.00018726,7]
[402263148,1768632640006,-500.0,0.00018726,7]
[402263149,1768632640015,-500.0,0.00018726,7]
[402263150,1768632640025,-500.0,0.00018726,7]
[402263151,1768632640035,-478.69,0.00018726,7]
[402263152,1768632640045,-500.0,0.00018726,7]
[402263153,1768632640055,-151.0,0.00018764,2]
[402263154,1768632640065,-29253.0,0.000188,2]
[402263155,1768632640075,-160.0,0.00018825,2]
[402263156,1768632640085,-357.6753416,0.00018879,2]
[402263157,1768632640094,-500.0,0.00018885,2]
[402263158,1768632640104,-500.0,0.00018885,2]
[402263159,1768632640113,-500.0,0.00018885,2]
[402263160,1768632640124,-500.96085982,0.00018885,2]
[402263161,1768632640135,-150.58,0.00018886,2]
[402263162,1768632640145,-303.10001603,0.000189,2]
[402263163,1768632640154,-3000.0,0.00018904,7]
[402263164,1768632640163,-151.0,0.0001894,2]
[402263165,1768632640173,-2230.315306,0.0001894,2]
[402263166,1768632640182,-461.67526834,0.0001894,2]
[402263167,1768632640192,-50000.0,0.00019,2]
[402263168,1768632640201,-180.10446059,0.00019037,2]
[402263169,1768632640211,-10795.23827802,0.00019078,2]
[402263170,1768632640221,-10000.0,0.00019078,2]
[402263171,1768632640230,-303.10001603,0.00019089,2]
[402263172,1768632640240,-1000.47,0.000191,2]
[402263173,1768632640250,-4581.58261385,0.00019152,3]
[402263174,1768632640259,-180.799,0.00019177,2]
[402263175,1768632640269,-1222.77936349,0.00019178,3]
[402263176,1768632640279,-500.0,0.00019178,3]
[402263177,1768632640288,-590.40738298,0.00019178,3]
[402263178,1768632640298,-500.0,0.00019178,3]
[402263179,1768632640308,-500.0,0.00019178,3]
[402263180,1768632640318,-500.0,0.00019178,3]
[402263181,1768632640327,-884.9,0.00019178,3]
[402263182,1768632640337,-554.19378487,0.00019178,3]
[402263183,1768632640347,-500.0,0.00019178,3]
[402263184,1768632640356,-500.0,0.00019178,3]
[402263185,1768632640366,-500.0,0.00019178,3]
[402263186,1768632640376,-1121.7,0.00019178,3]
[402263187,1768632640385,-1305.23,0.00019178,3]
[402263188,1768632640395,-744.56,0.00019178,3]
[402263189,1768632640404,-500.0,0.00019178,3]
[402263190,1768632640414,-500.0,0.00019178,3]
[402263191,1768632640423,-500.0,0.00019178,3]
[402263192,1768632640433,-617.87,0.00019178,3]
[402263193,1768632640443,-500.0,0.00019178,3]
[402263194,1768632640452,-500.0,0.00019178,3]
[402263195,1768632640461,-499.59360928,0.00019178,3]
[402263196,1768632640471,-500.0,0.00019178,3]
[402263197,1768632640481,-500.0,0.00019178,3]
[402263198,1768632640490,-532.55606123,0.00019178,3]
[402263199,1768632640500,-500.0,0.00019178,3]
[402263200,1768632640509,-500.0,0.00019178,3]
[402263201,1768632640518,-500.0,0.00019178,3]
[402263202,1768632640528,-500.0,0.00019178,3]
[402263203,1768632640539,-500.0,0.00019178,3]
[402263204,1768632640548,-500.0,0.00019178,3]
[402263205,1768632640558,-500.0,0.00019178,3]
[402263206,1768632640568,-500.0,0.00019178,3]
[402263207,1768632640577,-1542.76,0.00019178,3]
[402263208,1768632640586,-1834.58,0.00019178,3]
[402263209,1768632640596,-500.0,0.00019178,3]
[402263210,1768632640606,-500.0,0.00019178,3]
[402263211,1768632640615,-500.0,0.00019178,3]
[402263212,1768632640626,-500.0,0.00019178,3]
[402263213,1768632640635,-500.07551483,0.00019178,3]
[402263214,1768632640645,-500.0,0.00019178,3]
[402263215,1768632640655,-500.0,0.00019178,3]
[402263216,1768632640666,-580.8,0.00019178,3]
[402263217,1768632640676,-648.04,0.00019178,3]
[402263218,1768632640685,-500.0,0.00019178,3]
[402263219,1768632640699,-500.0,0.00019178,3]
[402263220,1768632640708,-500.0,0.00019178,3]
[402263221,1768632640718,-500.0,0.00019178,3]
[402263222,1768632640727,-500.0,0.00019178,3]
[402263225,1768632640738,-500.0,0.00019178,3]
[402263226,1768632640748,-500.0,0.00019178,3]
[402263228,1768632640757,-500.0,0.00019178,3]
[402263230,1768632640767,-533.67555497,0.00019178,3]
[402263232,1768632640777,-500.0,0.00019178,3]
[402263234,1768632640786,-172.631544,0.00019178,3]
[402263236,1768632640796,-1577.53,0.00019178,3]
[402263238,1768632640805,-500.0,0.00019178,3]
[402263239,1768632640815,-500.0,0.00019178,3]
[402263240,1768632640825,-500.0,0.00019178,3]
[402263241,1768632640834,-158.856128,0.00019178,3]
[402263242,1768632640844,-540.01468021,0.00019178,3]
[402263243,1768632640854,-500.0,0.00019178,3]
[402263244,1768632640864,-500.0,0.00019178,3]
[402263245,1768632640873,-500.0,0.00019178,3]
[402263247,1768632640883,-500.0,0.00019178,3]
[402263249,1768632640893,-500.0,0.00019178,3]
[402263251,1768632640903,-500.0,0.00019178,3]
[402263253,1768632640913,-500.0,0.00019178,3]
[402263255,1768632640923,-913.08,0.00019178,3]
[402263257,1768632640933,-501.29993361,0.00019178,3]
[402263259,1768632640942,-500.0,0.00019178,3]
[402263261,1768632640951,-500.0,0.00019178,3]
[402263263,1768632640961,-500.0,0.00019178,3]
[402263265,1768632640970,-500.0,0.00019178,3]
[402263267,1768632640980,-722.59,0.00019178,3]
[402263269,1768632640989,-942.19,0.00019178,3]
[402263271,1768632640998,-500.0,0.00019178,3]
[402263273,1768632641007,-645.08,0.00019178,3]
[402263275,1768632641016,-500.0,0.00019178,3]
[402263277,1768632641026,-500.0,0.00019178,3]
[402263279,1768632641035,-1851.83,0.00019178,3]
[402263281,1768632641045,-500.0,0.00019178,3]
[402263283,1768632641055,-519.01,0.00019178,3]
[402263285,1768632641065,-526.3812206,0.00019178,3]
[402263287,1768632641075,-500.0,0.00019178,3]
[402263289,1768632641085,-500.0,0.00019178,3]
[402263291,1768632641095,-500.0,0.00019178,3]
[402263293,1768632641104,-1132.01,0.00019178,3]
[402263295,1768632641114,-500.0,0.00019178,3]
[402263297,1768632641123,-1294.09,0.00019178,3]
[402263299,1768632641132,-500.0,0.00019178,3]
[402263301,1768632641141,-500.0,0.00019178,3]
[402263303,1768632641150,-281.96847602,0.00019178,3]
[402263305,1768632641160,-500.0,0.00019178,3]
[402263307,1768632641168,-618.02349392,0.00019178,3]
[402263309,1768632641177,-500.0,0.00019178,3]
[402263311,1768632641186,-500.0,0.00019178,3]
[402263313,1768632641195,-500.0,0.00019178,3]
[402263315,1768632641205,-500.0,0.00019178,3]
[402263317,1768632641214,-777.63,0.00019178,3]
[402263319,1768632641224,-500.0,0.00019178,3]
[402263321,1768632641235,-500.0,0.00019178,3]
[402263323,1768632641245,-500.0,0.00019178,3]
[402263325,1768632641255,-500.0,0.00019178,3]
[402263327,1768632641264,-1670.51,0.00019178,3]
[402263329,1768632641275,-1342.39,0.00019178,3]
[402263332,1768632641284,-501.22117515,0.00019178,3]
[402263333,1768632641295,-500.0,0.00019178,3]
[402263335,1768632641305,-1359.96,0.00019178,3]
[402263337,1768632641314,-563.69,0.00019178,3]
[402263339,1768632641324,-942.63,0.00019178,3]
[402263341,1768632641333,-500.0,0.00019178,3]
[402263343,1768632641344,-500.0,0.00019178,3]
[402263346,1768632641354,-500.0,0.00019178,3]
[402263348,1768632641364,-500.0,0.00019178,3]
[402263350,1768632641373,-871.59,0.00019178,3]
[402263352,1768632641384,-500.0,0.00019178,3]
[402263354,1768632641393,-500.0,0.00019178,3]
[402263356,1768632641402,-500.0,0.00019178,3]
[402263358,1768632641413,-693.7,0.00019178,3]
[402263360,1768632641422,-500.0,0.00019178,3]
[402263362,1768632641432,-500.0,0.00019178,3]
[402263364,1768632641441,-522.78394003,0.00019178,3]
[402263366,1768632641450,-500.0,0.00019178,3]
[402263368,1768632641460,-500.0,0.00019178,3]
[402263370,1768632641469,-518.59,0.00019178,3]
[402263372,1768632641479,-1568.17,0.00019178,3]
[402263374,1768632641488,-500.0,0.00019178,3]
[402263376,1768632641497,-500.0,0.00019178,3]
[402263378,1768632641506,-500.0,0.00019178,3]
[402263380,1768632641516,-797.95,0.00019178,3]
[402263382,1768632641525,-500.0,0.00019178,3]
[402263384,1768632641534,-784.75,0.00019178,3]
[402263386,1768632641543,-533.25,0.00019178,3]
[402263388,1768632641552,-501.88,0.00019178,3]
[402263390,1768632641561,-500.0,0.00019178,3]
[402263392,1768632641571,-617.92,0.00019178,3]
[402263394,1768632641580,-500.0,0.00019178,3]
[402263396,1768632641589,-552.83,0.00019178,3]
[402263397,1768632641599,-887.98,0.00019178,3]
[402263400,1768632641608,-500.0,0.00019178,3]
[402263401,1768632641619,-630.14,0.00019178,3]
[402263404,1768632641629,-500.0,0.00019178,2]
[402263405,1768632641638,-500.0,0.00019178,3]
[402263407,1768632641647,-500.0,0.00019178,3]
[402263410,1768632641658,-500.0,0.00019178,3]
[402263412,1768632641668,-577.84,0.00019178,3]
[402263414,1768632641677,-500.0,0.00019178,3]
[402263415,1768632641687,-500.0,0.00019178,3]
[402263418,1768632641700,-721.62,0.00019178,3]
[402263420,1768632641710,-500.0,0.00019178,3]
[402263421,1768632641719,-500.0,0.00019178,3]
[402263423,1768632641729,-500.0,0.00019178,3]
[402263426,1768632641738,-500.0,0.00019178,3]
[402263428,1768632641748,-500.0,0.00019178,3]
[402263451,1768632641757,-500.0,0.00019178,3]
[402263454,1768632641988,-500.0,0.00019178,3]
[402263456,1768632641998,-921.27,0.00019178,3]
[402263458,1768632642008,-500.0,0.00019178,3]
[402263460,1768632642018,-500.0,0.00019178,3]
[402263462,1768632642028,-500.0,0.00019178,3]
[402263464,1768632642038,-500.0,0.00019178,3]
[402263466,1768632642047,-500.0,0.00019178,3]
[402263468,1768632642057,-500.0,0.00019178,3]
[402263470,1768632642067,-500.0,0.00019178,3]
[402263472,1768632642077,-500.0,0.00019178,3]
[402263474,1768632642086,-500.0,0.00019178,3]
[402263476,1768632642097,-500.0,0.00019178,3]
[402263478,1768632642107,-628.44,0.00019178,3]
[402263480,1768632642117,-632.04690666,0.00019178,3]
[402263482,1768632642127,-500.0,0.00019178,3]
[402263484,1768632642137,-500.0,0.00019178,3]
[402263486,1768632642146,-500.0,0.00019178,3]
[402263488,1768632642156,-540.84,0.00019178,3]
[402263490,1768632642167,-500.0,0.00019178,3]
[402263492,1768632642177,-500.0,0.00019178,3]
[402263494,1768632642186,-500.0,0.00019178,3]
[402263496,1768632642196,-1251.31,0.00019178,3]
[402263498,1768632642206,-500.0,0.00019178,3]
[402263500,1768632642216,-500.0,0.00019178,3]
[402263502,1768632642225,-1088.19,0.00019178,3]
[402263504,1768632642236,-500.0,0.00019178,3]
[402263506,1768632642245,-500.0,0.00019178,3]
[402263508,1768632642255,-500.0,0.00019178,3]
[402263510,1768632642265,-500.0,0.00019178,3]
[402263512,1768632642275,-782.75,0.00019178,3]
[402263514,1768632642284,-1025.56,0.00019178,3]
[402263516,1768632642294,-526.17897158,0.00019178,3]
[402263518,1768632642304,-500.0,0.00019178,3]
[402263520,1768632642313,-931.1,0.00019178,3]
[402263522,1768632642323,-500.0,0.00019178,3]
[402263524,1768632642333,-619.77,0.00019178,3]
[402263526,1768632642343,-520.22,0.00019178,3]
[402263528,1768632642353,-500.0,0.00019178,3]
[402263530,1768632642363,-500.0,0.00019178,3]
[402263532,1768632642372,-500.0,0.00019178,3]
[402263534,1768632642382,-500.0,0.00019178,3]
[402263536,1768632642391,-500.0,0.00019178,3]
[402263538,1768632642401,-818.49,0.00019178,3]
[402263540,1768632642411,-500.0,0.00019178,3]
[402263542,1768632642421,-1472.9,0.00019178,3]
[402263544,1768632642431,-500.0,0.00019178,3]
[402263546,1768632642441,-977.67,0.00019178,3]
[402263548,1768632642451,-582.22,0.00019178,3]
[402263550,1768632642460,-500.0,0.00019178,3]
[402263552,1768632642469,-842.12,0.00019178,3]
[402263554,1768632642479,-619.01,0.00019178,3]
[402263556,1768632642488,-500.0,0.00019178,3]
[402263559,1768632642499,-500.0,0.00019178,3]
[402263560,1768632642508,-500.0,0.00019178,3]
[402263562,1768632642518,-500.0,0.00019178,3]
[402263564,1768632642528,-500.0,0.00019178,3]
[402263566,1768632642538,-500.0,0.00019178,3]
[402263569,1768632642547,-500.0,0.00019178,3]
[402263570,1768632642557,-500.0,0.00019178,3]
[402263572,1768632642568,-604.11,0.00019178,3]
[402263575,1768632642578,-1293.83,0.00019178,3]
[402263577,1768632642589,-500.0,0.00019178,3]
[402263579,1768632642598,-427.39365242,0.00019178,3]
[402263581,1768632642608,-500.0,0.00019178,3]
[402263583,1768632642617,-1040.39,0.00019178,3]
[402263585,1768632642627,-500.0,0.00019178,3]
[402263587,1768632642637,-693.9,0.00019178,3]
[402263589,1768632642647,-500.0,0.00019178,3]
[402263591,1768632642657,-727.95,0.00019178,3]
[402263593,1768632642666,-500.0,0.00019178,3]
[402263595,1768632642676,-1225.34,0.00019178,3]
[402263597,1768632642685,-500.0,0.00019178,3]
[402263599,1768632642697,-1076.17,0.00019178,3]